[Event "44th Chess Olympiad Open 2022"]
[Site "Chennai"]
[Date "2022.08.07"]
[Round "9.36"]
[White "Karimov, Alisher"]
[Black "Chukavin, Kirill"]
[Result "1/2-1/2"]
[WhiteElo "2234"]
[BlackElo "2418"]
[Annotator "TA"]
[PlyCount "117"]
[EventDate "2022.??.??"]
[TimeControl "60"]

{[%evp 11,117,0,3,-8,-10,-5,10,7,22,-23,-19,-20,-18,-25,-11,-22,-24,-14,11,0,0,
0,0,-40,0,-11,-6,-19,0,-2,-12,-7,0,0,0,0,0,0,0,0,0,0,0,0,0,0,0,0,0,0,0,0,0,0,0,
0,0,0,0,0,0,0,0,0,0,0,0,0,0,0,0,0,0,0,0,0,0,0,0,0,0,0,0,0,0,0,0,0,0,0,0,0,0,0,
0,0,0,0,0,0,0,0,0,0,0,0,0,0]} 1. d4 {[%emt 0:00:08]} Nf6 {[%emt 0:00:25]} 2. c4
{[%emt 0:00:08]} e6 {[%emt 0:00:17]} 3. Nf3 {[%emt 0:00:10]} d5 {[%emt 0:00:14]
} 4. Nc3 {[%emt 0:00:06]} c5 {[%emt 0:00:36]} 5. cxd5 {[%emt 0:00:29]} cxd4 {
[%emt 0:00:30]} 6. Nxd4 {[%emt 0:00:36]} Nxd5 {[%emt 0:01:46]} 7. Nxd5 {
[%emt 0:02:12] A32: Symmetrical English: 2 Nf3 Nf6 3 d4 cxd4 4 Nxd4 e6.} Qxd5 {
[%emt 0:03:27]} 8. e3 {[%emt 0:01:36]} a6 {[%emt 0:18:11]} 9. Qb3 {[%emt 0:00:
00]} Qxb3 {[%emt 0:02:19] [#]} 10. axb3 $146 {[%emt 0:07:00]} ({Predecessor:} 
10. Nxb3 Nc6 11. Be2 e5 12. e4 Be6 13. O-O Nb4 14. Rd1 Nxa2 15. Na5 b5 16. Be3
{0-1 (47) Peglau,M (1851)-Burian,S (2073) Wroclaw 2020}) 10... Bc5 {[%emt 0:00:
00]} 11. Nc2 {[%emt 0:04:50]} e5 {[%emt 0:09:26]} 12. b4 {[%emt 0:05:47]} Bd6 {
[%emt 0:10:51]} 13. Bd3 {[%emt 0:11:43] Against Bf5} Be6 {[%emt 0:00:00]} 14.
Bd2 {[%emt 0:06:11]} Nd7 {[%emt 0:01:47]} 15. Na3 {[%emt 0:09:35][%cal Ya3b5]}
Nb6 {[%emt 0:02:28]} 16. Ke2 {[%emt 0:03:23]} Ke7 {[%emt 0:05:43]} 17. b5 {
[%emt 0:04:50]} a5 {[%emt 0:02:56]} (17... Na4 $5 {[%cal Ra4b2]} 18. Nc4 e4 19.
Rxa4 exd3+ 20. Kf3 axb5 21. Rxa8 Rxa8 22. Nxd6 Kxd6 $11) 18. Rhc1 {[%emt 0:00:
00] The position is equal.} Rhc8 {[%emt 0:09:55]} 19. Rxc8 {[%emt 0:00:00]} ({
But not} 19. Bxh7 $2 g6 20. e4 (20. Rxc8 $2 Rxc8 21. Bxa5 Nd7 $19) 20... Rxc1
21. Rxc1 Rh8 22. Bxa5 Nd7 23. Bxg6 fxg6 $19) 19... Bxc8 {[%emt 0:10:11]} 20.
Nc4 {[%emt 0:00:00]} (20. Bxh7 g6 21. h4 Kf6 $19) 20... Nxc4 {[%emt 0:00:49]}
21. Bxc4 {[%emt 0:00:00]} b6 {[%emt 0:00:57]} 22. b4 {[%emt 0:00:00][%cal
Rb4a5]} a4 {[%emt 0:00:50]} 23. e4 {[%emt 0:02:08]} Be6 {[%emt 0:02:29]} 24.
Bxe6 {[%emt 0:00:26]} Kxe6 $11 {[%emt 0:00:19] Endgame KRB-KRB} 25. Kd3 {
[%emt 0:00:28]} g6 {[%emt 0:04:53]} 26. Kc4 {[%emt 0:06:52]} Rc8+ {[%emt 0:00:
19]} 27. Kd3 {[%emt 0:00:09]} Ra8 {[%emt 0:00:04]} 28. Kc4 {[%emt 0:00:00]} f5
{[%emt 0:00:49]} 29. f3 {[%emt 0:00:57]} Rc8+ {[%emt 0:00:12]} 30. Kd3 {
[%emt 0:00:06]} Ra8 {[%emt 0:00:03]} 31. Kc4 {[%emt 0:00:11]} Be7 {[%emt 0:01:
45]} 32. Be3 {[%emt 0:01:16]} Rc8+ {[%emt 0:00:48]} 33. Kd3 {[%emt 0:00:07]}
Bxb4 {[%emt 0:00:21]} 34. Rxa4 {[%emt 0:01:22]} Rc3+ {[%emt 0:00:00]} 35. Ke2 {
[%emt 0:04:30]} Bc5 {[%emt 0:00:13]} 36. exf5+ {[%emt 0:01:43]} gxf5 {[%emt 0:
00:05]} 37. Bxc5 {[%emt 0:01:30]} Rxc5 {[%emt 0:00:11] KR-KR} 38. Rh4 {[%emt 0:
00:11]} Rxb5 {[%emt 0:04:23]} 39. g4 {[%emt 0:00:18]} Rb2+ {[%emt 0:00:54]} 40.
Kf1 {[%emt 0:00:56]} f4 {[%emt 0:00:34]} 41. Rxh7 {[%emt 0:00:00]} b5 {[%emt 0:
18:13]} 42. h4 {[%emt 0:00:00]} e4 {[%emt 0:05:10]} 43. fxe4 {[%emt 0:00:00] 
[#] Strongly threatening g5.} Ke5 {[%emt 0:06:15]} 44. Rf7 {[%emt 0:00:00]}
Kxe4 {[%emt 0:00:00]} 45. g5 {[%emt 0:01:23]} Kf3 {[%emt 0:00:00][%cal Rb2b1]}
46. Ke1 {[%emt 0:00:00]} Rh2 {[%emt 0:03:58] [#] Threatens to win with ...Rh1+.
} 47. Rb7 {[%emt 0:00:00]} Rxh4 {[%emt 0:00:00]} (47... Ke3 $5 48. Re7+ Kf3 $11
) 48. Rxb5 {[%emt 0:00:00]} Rh1+ {[%emt 0:00:09]} 49. Kd2 {[%emt 0:00:00]} Kf2
{[%emt 0:00:25]} 50. g6 {[%emt 0:00:00]} Rg1 {[%emt 0:00:00]} 51. Rb6 {[%emt 0:
00:00]} f3 {[%emt 0:00:23] aiming for ...Rg5.} 52. Kd3 {[%emt 0:00:00]} Rg4 {
[%emt 0:00:42]} 53. Rf6 {[%emt 0:00:00]} Kg2 {[%emt 0:00:00] ...f2 is the
strong threat.} 54. Ke3 {[%emt 0:02:14] Against f2} Rg3 {[%emt 0:00:06]} 55.
Ke4 {[%emt 0:00:21]} f2 {[%emt 0:00:40]} 56. Rxf2+ $1 {[%emt 0:01:26]} Kxf2 {
[%emt 0:00:05]} 57. Kf5 {[%emt 0:00:06]} Kf3 {[%emt 0:00:00]} 58. Kf6 {[%emt 0:
00:15]} Rxg6+ {[%emt 0:00:38]} 59. Kxg6 {[%emt 0:00:14] An even fight not
without its subleties. Weighted Error Value: White=0.03 (flawless) /Black=0.02
(flawless)} 1/2-1/2

[Event "44th Chess Olympiad Open 2022"]
[Site "Chennai"]
[Date "2022.08.07"]
[Round "9.36"]
[White "Ilkhomi, Jaloliddin"]
[Black "Shishkov, Andrei"]
[Result "1-0"]
[WhiteElo "2076"]
[BlackElo "2366"]
[Annotator "RC"]
[PlyCount "123"]
[EventDate "2022.??.??"]
[TimeControl "60"]

1. d4 {[%emt 0:00:08]} d5 {[%emt 0:00:02]} 2. Bf4 {[%emt 0:00:21]} c5 {[%emt 0:
00:00]} 3. e3 {[%emt 0:00:11]} Nc6 {[%emt 0:00:07]} 4. Nf3 {[%emt 0:00:30]} Nf6
{[%emt 0:00:13]} 5. Nbd2 {[%emt 0:00:16]} Nh5 {[%emt 0:00:35]} 6. Be5 {[%emt 0:
00:00]} f6 {[%emt 0:00:44]} 7. Bg3 {[%emt 0:00:16]} cxd4 {[%emt 0:08:48]} 8.
exd4 {[%emt 0:03:46]} g6 {[%emt 0:02:27]} 9. c3 {[%emt 0:03:18]} Be6 {[%emt 0:
00:00]} 10. Qb3 {[%emt 0:01:34]} Qd7 {[%emt 0:00:37]} 11. c4 {[%emt 0:03:13]}
Bh6 {[%emt 0:01:53]} 12. Rd1 {[%emt 0:02:04]} Bxd2+ {[%emt 0:19:07]} 13. Nxd2 {
[%emt 0:25:15]} Nxd4 {[%emt 0:03:50]} 14. Qc3 {[%emt 0:01:57]} Nf5 {[%emt 0:00:
00]} 15. Ne4 {[%emt 0:11:21]} Rc8 {[%emt 0:01:21]} 16. Qb4 {[%emt 0:00:58]} d4
{[%emt 0:20:47]} 17. Be2 {[%emt 0:06:17]} Qc6 {[%emt 0:02:09]} 18. O-O {
[%emt 0:03:03]} O-O {[%emt 0:09:36]} 19. Rfe1 {[%emt 0:02:35]} b6 {[%emt 0:00:
00]} 20. Bxh5 {[%emt 0:07:48]} gxh5 {[%emt 0:00:12]} 21. Nd6 {[%emt 0:00:21]}
Nxd6 {[%emt 0:00:59]} 22. Bxd6 {[%emt 0:00:05]} Qxc4 {[%emt 0:11:52]} 23. Qxc4
{[%emt 0:01:26]} Bxc4 {[%emt 0:00:09]} 24. Bxe7 {[%emt 0:00:23]} Rfe8 {[%emt 0:
00:00]} 25. Rxd4 {[%emt 0:07:34]} Bxa2 {[%emt 0:00:49]} 26. Rdd1 {[%emt 0:00:
00]} Kf7 {[%emt 0:00:45]} 27. Bb4 {[%emt 0:00:13]} Rxe1+ {[%emt 0:00:55]} 28.
Rxe1 {[%emt 0:00:09]} a5 {[%emt 0:01:18]} 29. Bc3 {[%emt 0:00:45]} a4 {[%emt 0:
00:00]} 30. Re3 {[%emt 0:01:20]} Bd5 {[%emt 0:00:34]} 31. f3 {[%emt 0:01:57]}
b5 {[%emt 0:00:23]} 32. Rd3 {[%emt 0:01:32]} Ke6 {[%emt 0:00:36]} 33. Re3+ {
[%emt 0:00:21]} Kf5 {[%emt 0:00:42]} 34. Rd3 {[%emt 0:00:11]} Ke6 {[%emt 0:00:
00]} 35. Re3+ {[%emt 0:00:35]} Kf5 {[%emt 0:00:03]} 36. Rd3 {[%emt 0:00:42]}
Rc5 {[%emt 0:00:46]} 37. Kf2 {[%emt 0:00:17]} Be6 {[%emt 0:00:22]} 38. Ke3 {
[%emt 0:00:32]} h4 {[%emt 0:01:18]} 39. Rd4 {[%emt 0:01:48]} Re5+ {[%emt 0:00:
00]} 40. Kf2 {[%emt 0:00:59]} Rc5 {[%emt 0:01:14]} 41. Rxh4 {[%emt 0:32:14]}
Kg6 {[%emt 0:00:23]} 42. Re4 {[%emt 0:00:43]} Bf5 {[%emt 0:01:52]} 43. Re3 {
[%emt 0:00:00]} Rc4 {[%emt 0:01:20]} 44. g4 {[%emt 0:00:00]} Bc8 {[%emt 0:00:
00]} 45. Re4 {[%emt 0:03:07]} Rc6 {[%emt 0:06:25]} 46. Rb4 {[%emt 0:00:00]} a3
{[%emt 0:06:06]} 47. Rxb5 {[%emt 0:00:00]} a2 {[%emt 0:00:32]} 48. Ra5 {
[%emt 0:00:00]} Be6 {[%emt 0:00:02]} 49. h4 {[%emt 0:00:00]} Bb3 {[%emt 0:00:
00]} 50. f4 {[%emt 0:00:00]} Rc4 {[%emt 0:02:11]} 51. Ra7 {[%emt 0:00:00]}
Rxf4+ {[%emt 0:09:10]} 52. Kg3 {[%emt 0:00:00]} a1=Q {[%emt 0:00:37]} 53. Rxa1
{[%emt 0:00:00]} Re4 {[%emt 0:02:41]} 54. Ra7 {[%emt 0:00:00]} h5 {[%emt 0:00:
00]} 55. gxh5+ {[%emt 0:00:00]} Kxh5 {[%emt 0:00:08]} 56. Bxf6 {[%emt 0:00:00]}
Re3+ {[%emt 0:01:08]} 57. Kf4 {[%emt 0:00:00]} Re2 {[%emt 0:00:18]} 58. Ra3 {
[%emt 0:00:00]} Bd5 {[%emt 0:00:50]} 59. Ra5 {[%emt 0:00:00]} Rf2+ {[%emt 0:00:
00]} 60. Ke3 {[%emt 0:00:00]} Rxf6 {[%emt 0:01:00]} 61. Rxd5+ {[%emt 0:00:00]}
Kxh4 {[%emt 0:00:01]} 62. b4 {[%emt 0:00:00]} 1-0

[Event "44th Chess Olympiad Open 2022"]
[Site "Chennai"]
[Date "2022.08.07"]
[Round "9.37"]
[White "Stanojoski, Zvonko"]
[Black "Harper, Ryan"]
[Result "1-0"]
[WhiteElo "2412"]
[BlackElo "2208"]
[Annotator "TA"]
[PlyCount "105"]
[EventDate "2022.??.??"]
[TimeControl "60"]

{[%evp 9,105,47,42,45,42,35,51,58,67,58,66,40,39,33,27,32,25,0,16,8,24,20,32,0,
38,27,28,48,84,86,83,72,125,94,83,72,72,59,127,118,139,118,124,125,140,114,128,
67,56,63,60,63,85,68,69,46,111,110,108,105,105,103,108,63,94,111,97,28,41,12,
31,0,0,0,0,0,131,154,183,168,158,166,823,793,783,783,1173,842,686,638,1586,
1590,1591,1424,1235,568,29992,254]} 1. e4 {[%emt 0:00:08]} c5 {[%emt 0:00:06]}
2. Nf3 {[%emt 0:00:07]} Nc6 {[%emt 0:00:06]} 3. Bb5 {[%emt 0:00:44]} e5 {
[%emt 0:00:48]} 4. O-O {[%emt 0:01:19]} Bd6 {[%emt 0:00:41]} 5. c3 {[%emt 0:00:
00]} a6 {[%emt 0:00:47]} 6. Ba4 {[%emt 0:01:31] B30: Sicilian: 2...Nc6 3 Bb5,
lines without ...g6.} b5 {[%emt 0:00:10]} 7. Bc2 {[%emt 0:00:08]} Qc7 {[%emt 0:
00:00]} 8. Re1 {[%emt 0:05:42] [#] White is slightly better.} Nge7 $146 {
[%emt 0:01:09]} ({Predecessor:} 8... Nf6 9. d3 O-O 10. Nbd2 Re8 11. Nf1 h6 12.
Nh4 Bf8 13. Qf3 Bb7 14. Bxh6 Re6 {1-0 (37) Luque Saiz,A (2155)-Del Carmen
Hernandez,A (2037) Salobrena 2020}) 9. d3 {[%emt 0:04:05]} Ng6 {[%emt 0:01:35]}
10. Nbd2 {[%emt 0:00:41][%cal Yb1d2,Yd2f1,Yf1e3,Ye3d5]} Be7 {[%emt 0:00:00]}
11. Nf1 {[%emt 0:01:12]} O-O {[%emt 0:06:22]} 12. Ne3 {[%emt 0:12:25]} d6 {
[%emt 0:02:50]} 13. d4 {[%emt 0:04:34]} exd4 {[%emt 0:13:40]} 14. cxd4 {
[%emt 0:00:27]} cxd4 {[%emt 0:04:26]} 15. Nd5 {[%emt 0:00:41]} Qa7 {[%emt 0:00:
00]} 16. a4 {[%emt 0:07:07] axb5 is the strong threat.} b4 {[%emt 0:01:47]} 17.
Nxe7+ {[%emt 0:03:30]} Ngxe7 {[%emt 0:00:28]} 18. Bf4 $36 {[%emt 0:00:38]
Black is under pressure.} Ng6 {[%emt 0:16:06]} 19. Bxd6 {[%emt 0:00:46]} Re8 {
[%emt 0:05:49]} 20. h3 {[%emt 0:01:19] Prevents Bg4.} Nge5 {[%emt 0:02:43]} (
20... Nce5 $142) 21. Bb3 {[%emt 0:12:19] Strongly threatening Rc1.} Be6 {
[%emt 0:06:30]} 22. Bd5 {[%emt 0:05:24] A strong pair of Bishops.} Nxf3+ {
[%emt 0:01:51]} 23. Qxf3 {[%emt 0:00:07]} ({Much weaker is} 23. gxf3 Red8 24.
Bxc6 Rac8 25. Bxb4 Rxc6 $15) 23... Qd7 {[%emt 0:00:10]} (23... Rac8 $1 $14) 24.
e5 $1 $16 {[%emt 0:04:50]} Bxd5 {[%emt 0:07:16]} 25. Qxd5 {[%emt 0:00:06]} h6 {
[%emt 0:00:51]} 26. Rac1 {[%emt 0:02:34]} Rac8 {[%emt 0:00:33]} 27. Rc5 {
[%emt 0:00:40]} Ne7 {[%emt 0:03:31]} 28. Bxe7 {[%emt 0:01:13] 0x0.
0024d610c149dp-1022s more active pieces.} (28. Qxd4 $16 Rxc5 29. Qxc5 (29. Bxc5
Qxd4 30. Bxd4 Rc8 $16)) 28... Qxe7 $14 {[%emt 0:00:08]} 29. Rxc8 {[%emt 0:00:
00]} Rxc8 {[%emt 0:00:07]} 30. Qxd4 $16 {[%emt 0:00:26] Endgame KQR-KQR} Qc5 {
[%emt 0:00:44] Inhibits Qb6.} 31. Qd7 {[%emt 0:00:50] Threatens to win with e6.
} Qc6 {[%emt 0:01:06]} 32. Qg4 {[%emt 0:01:26]} Qc4 {[%emt 0:00:00]} (32... a5
$14) 33. Re4 $1 {[%emt 0:01:44]} Qc1+ {[%emt 0:00:06]} 34. Kh2 {[%emt 0:00:08]}
a5 {[%emt 0:00:28]} 35. b3 {[%emt 0:00:34]} Qc7 {[%emt 0:01:00]} 36. Qg3 {
[%emt 0:00:43]} Qd7 {[%emt 0:00:23]} 37. Rg4 {[%emt 0:00:40]} g6 {[%emt 0:00:
07]} 38. Qf4 {[%emt 0:00:07]} (38. Qe3 $16) 38... Qe6 $11 {[%emt 0:00:00]} 39.
Rg3 {[%emt 0:05:47]} Rc3 {[%emt 0:00:11]} 40. Qf6 {[%emt 0:00:09]} (40. Qd4 {
looks sharper.} Qxb3 41. Qd8+ Kg7 42. Qxa5 Rxg3 43. fxg3 h5 44. Qa6) 40... Qxf6
{[%emt 0:00:16]} 41. exf6 {[%emt 0:30:05] KR-KR} Kh7 {[%emt 0:13:02]} 42. h4 {
[%emt 0:00:00][%cal Yh3h4,Yh4h5]} g5 {[%emt 0:07:45] [#]} (42... Rc6 $11) 43.
h5 $1 $16 {[%emt 0:00:00]} ({But not} 43. hxg5 $6 Rxg3 44. Kxg3 hxg5 $11) 43...
Rc5 {[%emt 0:06:37] [#]} 44. Kh3 $1 {[%emt 0:00:00]} Rf5 {[%emt 0:01:58]} 45.
Rf3 {[%emt 0:00:00]} g4+ $2 {[%emt 0:00:25]} (45... Re5 46. Kg4 Re4+ 47. Kg3
Re5) 46. Kxg4 $18 {[%emt 0:00:00]} Rg5+ {[%emt 0:00:06]} 47. Kf4 {[%emt 0:00:
00]} Rxg2 {[%emt 0:00:37]} 48. Ke4 {[%emt 0:00:00]} Rg1 {[%emt 0:01:37]} 49.
Rg3 {[%emt 0:02:09]} Rh1 {[%emt 0:01:20]} 50. Rg7+ {[%emt 0:00:16]} Kh8 {
[%emt 0:00:05]} 51. Rxf7 {[%emt 0:00:06]} Rxh5 {[%emt 0:00:00]} 52. Rb7 {
[%emt 0:01:04]} (52. Rg7 $142 Rh2 53. f4) 52... Rh3 {[%emt 0:00:00]} 53. Rb8+ {
[%emt 0:00:12] Weighted Error Value: White=0.21 (precise) / Black=0.32} 1-0

[Event "44th Chess Olympiad Open 2022"]
[Site "Chennai"]
[Date "2022.08.07"]
[Round "9.37"]
[White "Lazov, Toni"]
[Black "Mc Intosh, Isaiah"]
[Result "1-0"]
[WhiteElo "2374"]
[BlackElo "2215"]
[Annotator "RC"]
[PlyCount "77"]
[EventDate "2022.??.??"]
[TimeControl "60"]

1. e4 {[%emt 0:00:03]} e5 {[%emt 0:00:09]} 2. Nf3 {[%emt 0:00:16]} Nc6 {
[%emt 0:00:06]} 3. Bc4 {[%emt 0:00:20]} Bc5 {[%emt 0:00:09]} 4. c3 {[%emt 0:00:
00]} Nf6 {[%emt 0:00:07]} 5. d3 {[%emt 0:00:02]} d6 {[%emt 0:00:10]} 6. Nbd2 {
[%emt 0:03:37]} a5 {[%emt 0:00:18]} 7. O-O {[%emt 0:06:19]} h6 {[%emt 0:00:08]}
8. Re1 {[%emt 0:05:56]} O-O {[%emt 0:00:09]} 9. Nf1 {[%emt 0:08:07]} Ne7 {
[%emt 0:02:31]} 10. Ng3 {[%emt 0:05:49]} Ng6 {[%emt 0:01:26]} 11. Bb3 {[%emt 0:
00:00]} c6 {[%emt 0:03:25]} 12. d4 {[%emt 0:01:50]} Ba7 {[%emt 0:00:08]} 13. h3
{[%emt 0:06:54]} Re8 {[%emt 0:04:34]} 14. Be3 {[%emt 0:01:02]} exd4 {[%emt 0:
00:00]} 15. Bxd4 {[%emt 0:14:57]} Be6 {[%emt 0:03:32]} 16. Bxe6 {[%emt 0:05:26]
} Rxe6 {[%emt 0:00:10]} 17. Bxa7 {[%emt 0:00:11]} Rxa7 {[%emt 0:00:07]} 18. Nd4
{[%emt 0:07:01]} Re8 {[%emt 0:00:11]} 19. Ndf5 {[%emt 0:00:56]} Re6 {[%emt 0:
00:00]} 20. Qd4 {[%emt 0:03:52]} Ra6 {[%emt 0:11:32]} 21. Rad1 {[%emt 0:00:40]}
Qf8 {[%emt 0:00:31]} 22. c4 {[%emt 0:04:01]} a4 {[%emt 0:26:13]} 23. Qd2 {
[%emt 0:01:51]} Ne5 {[%emt 0:03:42]} 24. Nxd6 {[%emt 0:01:15]} c5 {[%emt 0:00:
00]} 25. Nb5 {[%emt 0:02:27]} h5 {[%emt 0:05:55]} 26. Nc7 {[%emt 0:04:54]} h4 {
[%emt 0:00:22]} 27. Nxe6 {[%emt 0:00:37]} fxe6 {[%emt 0:00:07]} 28. Nf1 {
[%emt 0:03:42]} Nxc4 {[%emt 0:00:29]} 29. Qc1 {[%emt 0:04:38]} b5 {[%emt 0:00:
00]} 30. Re2 {[%emt 0:00:38]} Nh5 {[%emt 0:02:34]} 31. Qg5 {[%emt 0:01:05]} Nf6
{[%emt 0:02:28]} 32. Qxh4 {[%emt 0:00:43]} a3 {[%emt 0:00:12]} 33. bxa3 {
[%emt 0:01:24]} Rxa3 {[%emt 0:00:35]} 34. Rb1 {[%emt 0:00:32]} Ra5 {[%emt 0:00:
00]} 35. Ng3 {[%emt 0:00:24]} Ne5 {[%emt 0:01:38]} 36. Nh5 {[%emt 0:00:33]}
Nfd7 {[%emt 0:00:27]} 37. Rb3 {[%emt 0:00:25]} Ng6 {[%emt 0:01:37]} 38. Qg5 {
[%emt 0:00:20]} Nde5 {[%emt 0:00:21]} 39. f4 {[%emt 0:00:43]} 1-0

[Event "44th Chess Olympiad Open 2022"]
[Site "Chennai"]
[Date "2022.08.07"]
[Round "9.37"]
[White "Winter Atwell, Adrian"]
[Black "Nikolovski, Nikola"]
[Result "0-1"]
[WhiteElo "2250"]
[BlackElo "2366"]
[Annotator "RC"]
[PlyCount "64"]
[EventDate "2022.??.??"]
[TimeControl "60"]

1. e4 {[%emt 0:00:17]} e6 {[%emt 0:00:18]} 2. d4 {[%emt 0:00:46]} d5 {[%emt 0:
00:00]} 3. exd5 {[%emt 0:00:22]} exd5 {[%emt 0:00:10]} 4. c4 {[%emt 0:00:10]}
Nf6 {[%emt 0:01:27]} 5. Nc3 {[%emt 0:00:49]} Bb4 {[%emt 0:02:24]} 6. Bd3 {
[%emt 0:00:26]} dxc4 {[%emt 0:01:17]} 7. Bxc4 {[%emt 0:00:15]} O-O {[%emt 0:00:
00]} 8. Nge2 {[%emt 0:00:11]} Nbd7 {[%emt 0:00:54]} 9. O-O {[%emt 0:00:42]} Nb6
{[%emt 0:01:55]} 10. Bb3 {[%emt 0:00:44]} c6 {[%emt 0:02:25]} 11. Bg5 {[%emt 0:
00:00]} Re8 {[%emt 0:02:58]} 12. Qd3 {[%emt 0:06:57]} Be6 {[%emt 0:08:07]} 13.
Bc2 {[%emt 0:05:31]} Bc4 {[%emt 0:14:12]} 14. Qh3 {[%emt 0:00:06]} h6 {[%emt 0:
00:00]} 15. Bxf6 {[%emt 0:03:45]} Qxf6 {[%emt 0:00:29]} 16. Bd3 {[%emt 0:00:14]
} Bxc3 {[%emt 0:03:51]} 17. bxc3 {[%emt 0:00:48]} Rxe2 {[%emt 0:01:01]} 18.
Bxe2 {[%emt 0:00:49]} Bxe2 {[%emt 0:00:09]} 19. Rfe1 {[%emt 0:00:16]} Bc4 {
[%emt 0:01:04]} 20. a4 {[%emt 0:00:15]} Be6 {[%emt 0:14:18]} 21. Qg3 {[%emt 0:
00:00]} Qd8 {[%emt 0:00:54]} 22. a5 {[%emt 0:00:52]} Nc4 {[%emt 0:00:22]} 23.
a6 {[%emt 0:00:25]} b5 {[%emt 0:00:39]} 24. Re2 {[%emt 0:05:23]} Qg5 {[%emt 0:
00:00]} 25. Qc7 {[%emt 0:09:10]} Bd5 {[%emt 0:02:33]} 26. f4 {[%emt 0:00:23]}
Qg4 {[%emt 0:04:01]} 27. Rf2 {[%emt 0:01:49]} Ne3 {[%emt 0:02:14]} 28. g3 {
[%emt 0:02:13]} Nd1 {[%emt 0:00:59]} 29. Rd2 {[%emt 0:01:51]} Qf3 {[%emt 0:00:
00]} 30. Raxd1 {[%emt 0:01:28]} Qh1+ {[%emt 0:00:46]} 31. Kf2 {[%emt 0:00:41]}
Qg2+ {[%emt 0:00:29]} 32. Ke1 {[%emt 0:00:28]} Re8+ {[%emt 0:00:06]} 0-1